[Event "*** Titled Tuesday Blitz"]
[Site "Chess.com"]
[Date "2018.07.03"]
[Round "6"]
[White "Dr_Mortimer"]
[Black "pouya21"]
[Result "1/2-1/2"]
[WhiteElo "2806"]
[BlackElo "2649"]
[TimeControl "180+2"]
[EndTime "14:18:22 PDT"]
[Termination "Game drawn - insufficient material"]

1. e4 {[%clk 0:03:01.9]} 1... c5 {[%clk 0:03:00.9]} 2. Nc3 {[%clk 0:03:03.2]}
2... d6 {[%clk 0:03:01.5]} 3. d4 {[%clk 0:03:04]} 3... cxd4 {[%clk 0:03:03.4]}
4. Qxd4 {[%clk 0:03:05.5]} 4... Nc6 {[%clk 0:03:02.7]} 5. Qd2 {[%clk 0:03:06.9]}
5... g6 {[%clk 0:03:04.2]} 6. b3 {[%clk 0:03:08.3]} 6... Bh6 {[%clk 0:03:05.2]}
7. f4 {[%clk 0:03:09.5]} 7... e5 {[%clk 0:03:05.7]} 8. g3 {[%clk 0:03:09.8]}
8... Nf6 {[%clk 0:03:06.5]} 9. Bb2 {[%clk 0:03:10]} 9... O-O {[%clk 0:03:05.6]}
10. O-O-O {[%clk 0:03:10.5]} 10... a5 {[%clk 0:03:07.1]} 11. a4 {[%clk
0:03:11.2]} 11... Nd4 {[%clk 0:02:49.1]} 12. Kb1 {[%clk 0:03:09.2]} 12... Bg4
{[%clk 0:02:40.2]} 13. Re1 {[%clk 0:03:01]} 13... Rc8 {[%clk 0:02:33.7]} 14. Bc4
{[%clk 0:02:50.9]} 14... Rxc4 {[%clk 0:02:24.6]} 15. bxc4 {[%clk 0:02:52.8]}
15... Qc7 {[%clk 0:02:12.8]} 16. Nb5 {[%clk 0:02:40.6]} 16... Nxb5 {[%clk
0:02:13.8]} 17. cxb5 {[%clk 0:02:42]} 17... Nh5 {[%clk 0:02:02.2]} 18. Qc3
{[%clk 0:02:29.4]} 18... Qxc3 {[%clk 0:01:52.2]} 19. Bxc3 {[%clk 0:02:31.3]}
19... exf4 {[%clk 0:01:53.9]} 20. gxf4 {[%clk 0:02:32.3]} 20... Bxf4 {[%clk
0:01:46.5]} 21. Ne2 {[%clk 0:02:17]} 21... Be5 {[%clk 0:01:43.5]} 22. Bxe5
{[%clk 0:02:10.4]} 22... dxe5 {[%clk 0:01:45.4]} 23. Nc1 {[%clk 0:02:12.3]}
23... Rc8 {[%clk 0:01:37]} 24. Nd3 {[%clk 0:02:09.6]} 24... f6 {[%clk
0:01:37.8]} 25. Re3 {[%clk 0:01:46.2]} 25... Kf7 {[%clk 0:01:34.4]} 26. Rc1
{[%clk 0:01:46.3]} 26... Be6 {[%clk 0:01:30.4]} 27. Nb2 {[%clk 0:01:42.1]} 27...
Nf4 {[%clk 0:01:11.6]} 28. c4 {[%clk 0:01:42.4]} 28... b6 {[%clk 0:01:09.8]} 29.
c5 {[%clk 0:01:41.3]} 29... bxc5 {[%clk 0:01:10.9]} 30. Rec3 {[%clk 0:01:32.5]}
30... Ne2 {[%clk 0:01:08.9]} 31. Rxc5 {[%clk 0:00:39]} 31... Nxc1 {[%clk
0:01:08.5]} 32. Rxc8 {[%clk 0:00:40.1]} 32... Bxc8 {[%clk 0:01:08.3]} 33. Kxc1
{[%clk 0:00:42]} 33... Bb7 {[%clk 0:01:04.4]} 34. Nc4 {[%clk 0:00:41.2]} 34...
Ke6 {[%clk 0:01:05.2]} 35. Nxa5 {[%clk 0:00:41.3]} 35... Bxe4 {[%clk 0:01:06.2]}
36. Kd2 {[%clk 0:00:34.8]} 36... Bd5 {[%clk 0:01:06.3]} 37. Kc3 {[%clk
0:00:31.4]} 37... Kd6 {[%clk 0:00:57.2]} 38. Nc4+ {[%clk 0:00:28.3]} 38... Bxc4
{[%clk 0:00:51.4]} 39. Kxc4 {[%clk 0:00:30.2]} 39... f5 {[%clk 0:00:52.4]} 40.
a5 {[%clk 0:00:31.4]} 40... f4 {[%clk 0:00:52.7]} 41. a6 {[%clk 0:00:32.7]}
41... f3 {[%clk 0:00:42.4]} 42. a7 {[%clk 0:00:22.6]} 42... f2 {[%clk
0:00:43.7]} 43. a8=Q {[%clk 0:00:24]} 43... f1=Q+ {[%clk 0:00:43.8]} 44. Kb4
{[%clk 0:00:23.2]} 44... Qb1+ {[%clk 0:00:41]} 45. Kc4 {[%clk 0:00:21.3]} 45...
Qc2+ {[%clk 0:00:41.2]} 46. Kb4 {[%clk 0:00:20.2]} 46... Qb2+ {[%clk 0:00:42]}
47. Kc4 {[%clk 0:00:18.9]} 47... Qd4+ {[%clk 0:00:41]} 48. Kb3 {[%clk
0:00:20.2]} 48... Qd5+ {[%clk 0:00:41.8]} 49. Qxd5+ {[%clk 0:00:20.5]} 49...
Kxd5 {[%clk 0:00:43.1]} 50. Kc3 {[%clk 0:00:21.9]} 50... Kc5 {[%clk 0:00:31.7]}
51. Kd3 {[%clk 0:00:23.2]} 51... Kxb5 {[%clk 0:00:33]} 52. Ke4 {[%clk 0:00:25]}
52... Kc4 {[%clk 0:00:33.4]} 53. Kxe5 {[%clk 0:00:26.3]} 53... Kd3 {[%clk
0:00:34.9]} 54. Kf6 {[%clk 0:00:22]} 54... Ke3 {[%clk 0:00:33.7]} 55. Kg7 {[%clk
0:00:18]} 55... Kf3 {[%clk 0:00:20.7]} 56. Kxh7 {[%clk 0:00:18.7]} 56... g5
{[%clk 0:00:22.2]} 57. Kg6 {[%clk 0:00:19.8]} 57... Kg4 {[%clk 0:00:23.3]} 58.
h3+ {[%clk 0:00:18.1]} 58... Kh4 {[%clk 0:00:24]} 59. Kh6 {[%clk 0:00:19]} 59...
Kxh3 {[%clk 0:00:24.7]} 60. Kxg5 {[%clk 0:00:19]} 1/2-1/2

[Event "*** Titled Tuesday Blitz"]
[Site "Chess.com"]
[Date "2018.07.03"]
[Round "6"]
[White "1e41-0"]
[Black "gmjlh"]
[Result "0-1"]
[WhiteElo "2503"]
[BlackElo "2665"]
[TimeControl "180+2"]
[EndTime "14:18:24 PDT"]
[Termination "gmjlh won by resignation"]

1. d4 {[%clk 0:03:01.9]} 1... d5 {[%clk 0:02:57.4]} 2. c4 {[%clk 0:03:01.8]}
2... e6 {[%clk 0:02:58.2]} 3. Nc3 {[%clk 0:03:01.3]} 3... Nf6 {[%clk 0:02:58.2]}
4. cxd5 {[%clk 0:03:03.2]} 4... Nxd5 {[%clk 0:02:57.8]} 5. e4 {[%clk 0:03:02.2]}
5... Nxc3 {[%clk 0:02:58.6]} 6. bxc3 {[%clk 0:03:04.1]} 6... c5 {[%clk
0:02:59.5]} 7. Nf3 {[%clk 0:02:57.4]} 7... cxd4 {[%clk 0:02:59.2]} 8. cxd4
{[%clk 0:02:59.3]} 8... Bb4+ {[%clk 0:02:55.9]} 9. Bd2 {[%clk 0:02:59.9]} 9...
Bxd2+ {[%clk 0:02:56.6]} 10. Qxd2 {[%clk 0:03:01.7]} 10... O-O {[%clk
0:02:56.1]} 11. Bd3 {[%clk 0:02:44.7]} 11... Nc6 {[%clk 0:02:53.9]} 12. e5
{[%clk 0:02:34.7]} 12... Bd7 {[%clk 0:02:10.8]} 13. h4 {[%clk 0:02:28.7]} 13...
h6 {[%clk 0:02:08.7]} 14. Rb1 {[%clk 0:02:23.6]} 14... Ne7 {[%clk 0:02:07.6]}
15. Be4 {[%clk 0:02:17.4]} 15... Rb8 {[%clk 0:01:56.3]} 16. Rxb7 {[%clk
0:02:01.5]} 16... Rxb7 {[%clk 0:01:56.9]} 17. Bxb7 {[%clk 0:02:02.9]} 17... Bb5
{[%clk 0:01:44]} 18. Be4 {[%clk 0:01:49.3]} 18... Qc7 {[%clk 0:01:30.5]} 19. a4
{[%clk 0:01:26.1]} 19... Ba6 {[%clk 0:01:24.6]} 20. Bd3 {[%clk 0:01:20.1]} 20...
Bxd3 {[%clk 0:01:23.8]} 21. Qxd3 {[%clk 0:01:22]} 21... Qa5+ {[%clk 0:01:24.5]}
22. Qd2 {[%clk 0:01:21.4]} 22... Qxa4 {[%clk 0:01:20]} 23. O-O {[%clk
0:01:22.1]} 23... Rd8 {[%clk 0:01:18.6]} 24. Rb1 {[%clk 0:01:18.8]} 24... Nf5
{[%clk 0:01:13]} 25. Rb4 {[%clk 0:01:08.7]} 25... Qa1+ {[%clk 0:01:10.2]} 26.
Kh2 {[%clk 0:01:09.1]} 26... a5 {[%clk 0:01:10.9]} 27. Rb2 {[%clk 0:01:02.3]}
27... Qa4 {[%clk 0:01:03.9]} 28. Ra2 {[%clk 0:00:56.7]} 28... Nxd4 {[%clk
0:01:04.4]} 29. Nxd4 {[%clk 0:00:56.8]} 29... Qxd4 {[%clk 0:01:04.8]} 30. Qxd4
{[%clk 0:00:54.3]} 30... Rxd4 {[%clk 0:01:06.7]} 31. Rxa5 {[%clk 0:00:55.1]}
31... Rxh4+ {[%clk 0:01:07.5]} 32. Kg3 {[%clk 0:00:56.8]} 32... g5 {[%clk
0:01:08]} 33. f3 {[%clk 0:00:50]} 33... Kg7 {[%clk 0:01:08.3]} 34. Kf2 {[%clk
0:00:48.8]} 34... Kg6 {[%clk 0:01:08.9]} 35. g4 {[%clk 0:00:49.9]} 35... h5
{[%clk 0:00:57.9]} 36. Kg3 {[%clk 0:00:50.4]} 36... hxg4 {[%clk 0:00:55.1]} 37.
fxg4 {[%clk 0:00:52.1]} 37... Rh1 {[%clk 0:00:56]} 38. Ra8 {[%clk 0:00:52]}
38... Kg7 {[%clk 0:00:55.4]} 39. Ra5 {[%clk 0:00:52.3]} 39... Re1 {[%clk
0:00:52.3]} 40. Kf3 {[%clk 0:00:52.2]} 40... Kf8 {[%clk 0:00:52.1]} 41. Kf2
{[%clk 0:00:53.1]} 41... Re4 {[%clk 0:00:52.5]} 42. Kf3 {[%clk 0:00:51.2]} 42...
Rf4+ {[%clk 0:00:53.7]} 43. Kg3 {[%clk 0:00:52.8]} 43... Rd4 {[%clk 0:00:55.3]}
44. Kf3 {[%clk 0:00:47.8]} 44... Rd5 {[%clk 0:00:43.3]} 45. Ra8+ {[%clk
0:00:42.3]} 45... Kg7 {[%clk 0:00:44.6]} 46. Ke4 {[%clk 0:00:42.2]} 46... Rb5
{[%clk 0:00:46.2]} 47. Rc8 {[%clk 0:00:34.8]} 47... Rb3 {[%clk 0:00:46.3]} 48.
Kd4 {[%clk 0:00:27.5]} 48... Rg3 {[%clk 0:00:46]} 49. Rc7 {[%clk 0:00:25.4]}
49... Rxg4+ {[%clk 0:00:46.8]} 50. Kc5 {[%clk 0:00:26.8]} 50... Kg6 {[%clk
0:00:18.9]} 51. Kd6 {[%clk 0:00:22.1]} 51... Rh4 {[%clk 0:00:19.8]} 52. Rc8
{[%clk 0:00:21.6]} 52... Rh7 {[%clk 0:00:19.4]} 53. Rc1 {[%clk 0:00:18.2]} 53...
g4 {[%clk 0:00:16.6]} 54. Kc5 {[%clk 0:00:18]} 54... Kf5 {[%clk 0:00:17.3]} 55.
Kd4 {[%clk 0:00:19.1]} 55... g3 {[%clk 0:00:18.7]} 56. Rf1+ {[%clk 0:00:19.9]}
56... Kg4 {[%clk 0:00:19.5]} 57. Ke4 {[%clk 0:00:21.2]} 57... g2 {[%clk
0:00:19.2]} 58. Ra1 {[%clk 0:00:16.9]} 58... Rh1 {[%clk 0:00:18.4]} 59. Ra4
{[%clk 0:00:14.2]} 59... g1=Q {[%clk 0:00:16.9]} 60. Kd3+ {[%clk 0:00:14.5]}
60... Kf5 {[%clk 0:00:17.5]} 61. Rf4+ {[%clk 0:00:14.4]} 61... Kxf4 {[%clk
0:00:18.3]} 0-1

[Event "*** Titled Tuesday Blitz"]
[Site "Chess.com"]
[Date "2018.07.03"]
[Round "6"]
[White "Artur0208"]
[Black "Last7Samurai"]
[Result "1/2-1/2"]
[WhiteElo "2472"]
[BlackElo "2608"]
[TimeControl "180+2"]
[EndTime "14:18:50 PDT"]
[Termination "Game drawn by stalemate"]

1. d4 {[%clk 0:03:01.9]} 1... f5 {[%clk 0:02:58.4]} 2. c4 {[%clk 0:03:00.7]}
2... Nf6 {[%clk 0:02:58.8]} 3. Nc3 {[%clk 0:03:01.8]} 3... d6 {[%clk 0:02:59.4]}
4. Nf3 {[%clk 0:03:03.7]} 4... g6 {[%clk 0:02:59.5]} 5. g3 {[%clk 0:03:01]} 5...
Bg7 {[%clk 0:03:00.5]} 6. Bg2 {[%clk 0:03:02.2]} 6... O-O {[%clk 0:03:01.7]} 7.
O-O {[%clk 0:03:03.5]} 7... c6 {[%clk 0:03:02.2]} 8. d5 {[%clk 0:03:01]} 8... e5
{[%clk 0:03:00.8]} 9. dxe6 {[%clk 0:02:59]} 9... Bxe6 {[%clk 0:03:01.2]} 10. Qd3
{[%clk 0:02:40.8]} 10... Re8 {[%clk 0:03:01.8]} 11. Nd4 {[%clk 0:02:40.9]} 11...
Bf7 {[%clk 0:02:53.6]} 12. Bf4 {[%clk 0:02:18.9]} 12... Na6 {[%clk 0:02:45.7]}
13. Nb3 {[%clk 0:02:13]} 13... d5 {[%clk 0:02:14.1]} 14. cxd5 {[%clk 0:01:47.3]}
14... Nb4 {[%clk 0:01:38.7]} 15. Qd2 {[%clk 0:01:46.1]} 15... Nbxd5 {[%clk
0:01:29.4]} 16. Rfd1 {[%clk 0:01:34.8]} 16... Nxf4 {[%clk 0:01:28.6]} 17. Qxf4
{[%clk 0:01:32.8]} 17... Qe7 {[%clk 0:01:25.5]} 18. Qd6 {[%clk 0:01:05.8]} 18...
Qxd6 {[%clk 0:01:19.4]} 19. Rxd6 {[%clk 0:01:07]} 19... Ne4 {[%clk 0:01:17.1]}
20. Bxe4 {[%clk 0:01:06]} 20... fxe4 {[%clk 0:01:18.9]} 21. Nc5 {[%clk
0:01:04.4]} 21... Bf8 {[%clk 0:01:05.7]} 22. Nxb7 {[%clk 0:00:48.4]} 22... Bxd6
{[%clk 0:00:39.4]} 23. Nxd6 {[%clk 0:00:48.7]} 23... Reb8 {[%clk 0:00:40.9]} 24.
b3 {[%clk 0:00:49.3]} 24... e3 {[%clk 0:00:36.8]} 25. fxe3 {[%clk 0:00:49.1]}
25... a5 {[%clk 0:00:36.9]} 26. e4 {[%clk 0:00:46.3]} 26... Be6 {[%clk
0:00:34.8]} 27. Kf2 {[%clk 0:00:45.1]} 27... Rd8 {[%clk 0:00:31.9]} 28. e5
{[%clk 0:00:45.7]} 28... Rf8+ {[%clk 0:00:26.5]} 29. Ke3 {[%clk 0:00:46.7]}
29... a4 {[%clk 0:00:24.1]} 30. b4 {[%clk 0:00:47.9]} 30... a3 {[%clk
0:00:23.7]} 31. Nce4 {[%clk 0:00:44]} 31... Bd5 {[%clk 0:00:18]} 32. Nf6+ {[%clk
0:00:38.4]} 32... Kg7 {[%clk 0:00:18.3]} 33. Kd4 {[%clk 0:00:38.7]} 33... Be6
{[%clk 0:00:18.4]} 34. Kc5 {[%clk 0:00:37.6]} 34... Rfb8 {[%clk 0:00:18.7]} 35.
e4 {[%clk 0:00:37.5]} 35... Ra4 {[%clk 0:00:19.2]} 36. Nfe8+ {[%clk 0:00:29.8]}
36... Kh6 {[%clk 0:00:19.1]} 37. Nc7 {[%clk 0:00:29]} 37... Bg4 {[%clk
0:00:08.6]} 38. b5 {[%clk 0:00:29.5]} 38... cxb5 {[%clk 0:00:09.1]} 39. e6
{[%clk 0:00:27.3]} 39... Bxe6 {[%clk 0:00:06.3]} 40. Nxe6 {[%clk 0:00:27.6]}
40... Ra6 {[%clk 0:00:07.3]} 41. Nc7 {[%clk 0:00:26.6]} 41... Ra4 {[%clk
0:00:06]} 42. Ncxb5 {[%clk 0:00:26.5]} 42... Raa8 {[%clk 0:00:05.2]} 43. Kd5
{[%clk 0:00:27]} 43... Rf8 {[%clk 0:00:05.9]} 44. Rb1 {[%clk 0:00:21.4]} 44...
Rf2 {[%clk 0:00:06.4]} 45. Nc3 {[%clk 0:00:22.7]} 45... Rd2+ {[%clk 0:00:07.1]}
46. Ke6 {[%clk 0:00:23.8]} 46... Ra6 {[%clk 0:00:07.4]} 47. e5 {[%clk
0:00:24.2]} 47... Rxh2 {[%clk 0:00:08.3]} 48. Rb3 {[%clk 0:00:24.1]} 48... Rb2
{[%clk 0:00:08.5]} 49. Rxb2 {[%clk 0:00:08.9]} 49... axb2 {[%clk 0:00:10.4]} 50.
Kf6 {[%clk 0:00:07.3]} 50... Rxa2 {[%clk 0:00:10.8]} 51. g4 {[%clk 0:00:07.5]}
51... Ra6 {[%clk 0:00:11.1]} 52. Nb1 {[%clk 0:00:07]} 52... Rb6 {[%clk
0:00:10.2]} 53. Nc3 {[%clk 0:00:08.1]} 53... Rc6 {[%clk 0:00:11.4]} 54. Nb1
{[%clk 0:00:08.9]} 54... g5 {[%clk 0:00:11]} 55. Nd2 {[%clk 0:00:09.4]} 55...
Rb6 {[%clk 0:00:11.5]} 56. Nb1 {[%clk 0:00:10.3]} 56... Rc6 {[%clk 0:00:12.7]}
57. Na3 {[%clk 0:00:10.9]} 57... Rb6 {[%clk 0:00:12.4]} 58. Nb1 {[%clk
0:00:11.7]} 58... Rc6 {[%clk 0:00:13.2]} 59. Nc3 {[%clk 0:00:12.9]} 59... Rxd6+
{[%clk 0:00:13.5]} 60. exd6 {[%clk 0:00:04.6]} 60... b1=Q {[%clk 0:00:14.7]} 61.
Nxb1 {[%clk 0:00:05.8]} 1/2-1/2

[Event "*** Titled Tuesday Blitz"]
[Site "Chess.com"]
[Date "2018.07.03"]
[Round "6"]
[White "albi1999"]
[Black "Grebeniuk-S"]
[Result "1-0"]
[WhiteElo "2510"]
[BlackElo "2458"]
[TimeControl "180+2"]
[EndTime "14:19:17 PDT"]
[Termination "albi1999 won on time"]

1. d4 {[%clk 0:03:01]} 1... f5 {[%clk 0:03:00.8]} 2. Nf3 {[%clk 0:03:00.5]} 2...
Nf6 {[%clk 0:03:02]} 3. g3 {[%clk 0:02:59.3]} 3... g6 {[%clk 0:03:01.5]} 4. Bg2
{[%clk 0:03:00]} 4... d6 {[%clk 0:03:02.6]} 5. b3 {[%clk 0:03:00.9]} 5... Bg7
{[%clk 0:03:03.5]} 6. Bb2 {[%clk 0:03:01.8]} 6... O-O {[%clk 0:03:05.1]} 7. O-O
{[%clk 0:03:02]} 7... a5 {[%clk 0:03:06.6]} 8. c4 {[%clk 0:03:01.7]} 8... c6
{[%clk 0:03:06.8]} 9. Nc3 {[%clk 0:03:02.4]} 9... Qc7 {[%clk 0:03:07.7]} 10. Qc2
{[%clk 0:03:03.1]} 10... Na6 {[%clk 0:03:07.6]} 11. a3 {[%clk 0:03:00.4]} 11...
Re8 {[%clk 0:03:08.9]} 12. e4 {[%clk 0:03:00.3]} 12... e5 {[%clk 0:03:02.6]} 13.
Rfe1 {[%clk 0:02:51]} 13... f4 {[%clk 0:02:40.5]} 14. gxf4 {[%clk 0:02:49.4]}
14... exd4 {[%clk 0:02:18.6]} 15. Nxd4 {[%clk 0:02:47.3]} 15... Nh5 {[%clk
0:02:19.8]} 16. Nce2 {[%clk 0:02:42.8]} 16... Nc5 {[%clk 0:02:04]} 17. f5 {[%clk
0:02:36]} 17... Be5 {[%clk 0:01:50.9]} 18. Rf1 {[%clk 0:02:22.6]} 18... Nf4
{[%clk 0:01:29]} 19. Nxf4 {[%clk 0:02:19.6]} 19... Bxf4 {[%clk 0:01:30.9]} 20.
fxg6 {[%clk 0:02:09.4]} 20... hxg6 {[%clk 0:01:30.9]} 21. Ne2 {[%clk 0:02:05.3]}
21... Be5 {[%clk 0:01:06.6]} 22. Ng3 {[%clk 0:01:54.9]} 22... Ne6 {[%clk
0:00:56.8]} 23. Ne2 {[%clk 0:01:50.8]} 23... Qg7 {[%clk 0:00:44.5]} 24. Rab1
{[%clk 0:01:42.9]} 24... Bd7 {[%clk 0:00:33.2]} 25. f4 {[%clk 0:01:40.3]} 25...
Bxb2 {[%clk 0:00:33.5]} 26. Qxb2 {[%clk 0:01:41.6]} 26... Qxb2 {[%clk
0:00:30.5]} 27. Rxb2 {[%clk 0:01:43.5]} 27... Nc5 {[%clk 0:00:32]} 28. Ng3
{[%clk 0:01:40.4]} 28... Be6 {[%clk 0:00:20.8]} 29. Rd1 {[%clk 0:01:39.2]} 29...
Rad8 {[%clk 0:00:21.1]} 30. b4 {[%clk 0:01:36.8]} 30... Na4 {[%clk 0:00:21.2]}
31. Rc2 {[%clk 0:01:35.5]} 31... Bf7 {[%clk 0:00:16.3]} 32. bxa5 {[%clk
0:01:28.7]} 32... Nc5 {[%clk 0:00:11.8]} 33. Rcd2 {[%clk 0:01:25.7]} 33... Re6
{[%clk 0:00:08.2]} 34. e5 {[%clk 0:01:20.2]} 34... Ra8 {[%clk 0:00:05.8]} 35.
exd6 {[%clk 0:01:17.1]} 35... Nd7 {[%clk 0:00:06.8]} 36. Bh3 {[%clk 0:01:16.6]}
36... Rxa5 {[%clk 0:00:05.9]} 37. Bxe6 {[%clk 0:01:17.4]} 37... Bxe6 {[%clk
0:00:07.8]} 38. Re2 {[%clk 0:01:09.1]} 38... Bg4 {[%clk 0:00:08.6]} 39. Re7
{[%clk 0:01:08.2]} 39... Rxa3 {[%clk 0:00:08.8]} 40. Rb1 {[%clk 0:01:05.8]}
40... b6 {[%clk 0:00:08.6]} 41. Ne4 {[%clk 0:01:04.1]} 41... Rd3 {[%clk
0:00:06.8]} 42. Rxd7 {[%clk 0:00:57.3]} 42... Bxd7 {[%clk 0:00:08.7]} 43. Nf6+
{[%clk 0:00:58.3]} 43... Kg7 {[%clk 0:00:07.3]} 44. Nxd7 {[%clk 0:01:00.2]}
44... Rxd6 {[%clk 0:00:08.4]} 45. Nxb6 {[%clk 0:01:01.4]} 45... Rd4 {[%clk
0:00:09]} 46. Re1 {[%clk 0:00:53.5]} 46... Rxf4 {[%clk 0:00:08.8]} 47. Re6
{[%clk 0:00:53.6]} 47... c5 {[%clk 0:00:04.1]} 48. Rc6 {[%clk 0:00:53]} 48...
Rg4+ {[%clk 0:00:06]} 49. Kf2 {[%clk 0:00:52.6]} 49... Rh4 {[%clk 0:00:07.2]}
50. Kg3 {[%clk 0:00:53.6]} 50... Rh5 {[%clk 0:00:06.9]} 51. Nd5 {[%clk
0:00:54.7]} 51... Rg5+ {[%clk 0:00:07.6]} 52. Kf4 {[%clk 0:00:53.6]} 52... Rf5+
{[%clk 0:00:08.3]} 53. Kg4 {[%clk 0:00:54.4]} 53... Rf2 {[%clk 0:00:08.7]} 54.
h3 {[%clk 0:00:51.4]} 54... Rg2+ {[%clk 0:00:08.4]} 55. Kf3 {[%clk 0:00:52.6]}
55... Rh2 {[%clk 0:00:09.6]} 56. Kg3 {[%clk 0:00:53.5]} 56... Rc2 {[%clk
0:00:10.9]} 57. Rxc5 {[%clk 0:00:54.9]} 57... Kh6 {[%clk 0:00:12.3]} 58. Rc6
{[%clk 0:00:56]} 58... Kg5 {[%clk 0:00:11.6]} 59. c5 {[%clk 0:00:55.9]} 59...
Rd2 {[%clk 0:00:11.7]} 60. Rd6 {[%clk 0:00:53.9]} 60... Rd3+ {[%clk 0:00:12.3]}
61. Kg2 {[%clk 0:00:55]} 61... Rd2+ {[%clk 0:00:12.9]} 62. Kf3 {[%clk 0:00:56]}
62... Rd3+ {[%clk 0:00:13.9]} 63. Ne3 {[%clk 0:00:57.3]} 63... Rc3 {[%clk
0:00:14.2]} 64. c6 {[%clk 0:00:57.9]} 64... Kh4 {[%clk 0:00:15.5]} 65. Rxg6
{[%clk 0:00:57.8]} 65... Rc1 {[%clk 0:00:14.4]} 66. Kf4 {[%clk 0:00:50.3]} 66...
Kh5 {[%clk 0:00:12.9]} 67. Rd6 {[%clk 0:00:50.1]} 67... Rc3 {[%clk 0:00:10.4]}
68. Rd5+ {[%clk 0:00:50.3]} 68... Kh4 {[%clk 0:00:09.7]} 69. Rd6 {[%clk
0:00:47]} 69... Kh5 {[%clk 0:00:10.4]} 70. Nd5 {[%clk 0:00:44.2]} 70... Rxh3
{[%clk 0:00:04.8]} 71. c7 {[%clk 0:00:44.1]} 71... Rh4+ {[%clk 0:00:06.2]} 72.
Ke5 {[%clk 0:00:41.8]} 72... Rc4 {[%clk 0:00:08.1]} 73. Rd7 {[%clk 0:00:39.9]}
73... Kg6 {[%clk 0:00:08.5]} 74. c8=Q {[%clk 0:00:40.8]} 1-0